Cogmind - Beta 11 @@@ ROGUE MODE // 2022.03.26 @ 22:58:01 Player: AlmondRoll Result: Destroyed by Y-64 Sentinel with KE Penetrator Performance ------------- Evolutions (5) 2500 Regions Visited (16) 3200 Robots Destroyed (197) 985 Value Destroyed (5437) 5437 Prototype IDs (28) 560 Alien Tech Used (0) 0 Bonus (618) 618 TOTAL SCORE: 13300 Bonus ------- High Alert Combat Kills 136 Follower Combat Kills 180 Entered DSFs 500 Friendly Fire -198 Cogmind --------- Core Integrity 0/1000 Matter 283/300 Energy 99/100 System Corruption 7% Temperature Cool (9) Movement Core (50) Location -5/Extension Parts ------- > --- POWER (1) -------- (None) > --- PROPULSION (5) --- (None) > --- UTILITY (9) ------ Experimental Heat Sink Advanced Signal Interpreter Hacking Suite Advanced Hacking Suite Authchip [Propulsion] > --- WEAPON (2) ------- (None) > --- INVENTORY (5) ---- Micro Fission Core Medium Storage Unit Authchip [Propulsion] Authchip [Propulsion] Authchip [Propulsion] Peak State ------------ > --- POWER ------------ Micro Antimatter Reactor > --- PROPULSION ------- Xenon Bombardment Thruster Nuclear Pulse Thruster Nuclear Pulse Thruster Nuclear Pulse Thruster Field Propulsion Drive > --- UTILITY ---------- Advanced Cooling System Medium Storage Unit Experimental Sensor Array Advanced Signal Interpreter Improved Propulsion Shielding Improved Utility Shielding Hacking Suite Hacking Suite Hacking Suite > --- WEAPON ----------- Cooled Phase Gun Power Sword > --- INVENTORY -------- Improved Flight Unit Improved Propulsion Shielding Improved Utility Shielding Advanced Hacking Suite Authchip [Propulsion] Authchip [Propulsion] Authchip [Propulsion] Authchip [Propulsion] Mini Grenade Launcher Improved Remote Datajack [Rating: 85] Favorites ----------- Power Light Nuclear Core Engine Light Ion Engine Power Core Light Nuclear Core Reactor Micro Antimatter Reactor Propulsion Light Treads Treads Light Treads Leg Aluminum Leg Wheel Compact Wheel Hover Unit Aerolev Unit Flight Unit Improved Flight Unit Utility Cargo Storage Unit Device Experimental Sensor Array Storage Cargo Storage Unit Processor Core Analyzer Hackware Hacking Suite Protection Improved Weapon Shielding Weapon Enhanced Autogun Energy Gun Gatling Laser Energy Cannon Advanced Plasma Cannon Ballistic Gun Enhanced Autogun Ballistic Cannon Light Cannon Launcher Mini Grenade Launcher Special Weapon RU-N14's Throwing Claymores Impact Weapon Heavy Flail Slashing Weapon Power Sword Build | -11 -10 -10 -9 -8 -8 -7 -7 -6 -6 -6 -6 -5 -5 -5 -5 -5 ------- Run | Scr Mat Min Mat Mat Sto Fac DSF Fac Low Low Zio Pro Fac Was Fac Ext Slots Evolved 10 | . . . 2 2 . 2 . 2 . . . . 2 . . . Power . | . . . . . . . . . . . . . . . . . Propulsion 3 | . . . . . . 2 . . . . . . 1 . . . Utility 7 | . . . 2 2 . . . 2 . . . . 1 . . . Weapon . | . . . . . . . . . . . . . . . . . Parts Attached 259 | 3 8 6 38 24 44 2 15 42 8 13 14 2 15 9 9 7 Power 19 | . . 1 8 2 2 . 1 . 1 . . . . 1 1 2 Engine 12 | . . 1 8 1 1 . 1 . . . . . . . . . Core 6 | . . . . 1 1 . . . 1 . . . . . 1 2 Reactor 1 | . . . . . . . . . . . . . . 1 . . Propulsion 54 | 2 4 2 5 6 11 2 3 6 . . 4 . 3 5 . 1 Treads 31 | 2 4 2 5 2 10 2 3 1 . . . . . . . . Leg . | . . . . . . . . . . . . . . . . . Wheel 9 | . . . . 4 . . . 5 . . . . . . . . Hover 1 | . . . . . 1 . . . . . . . . . . . Flight 13 | . . . . . . . . . . . 4 . 3 5 . 1 Utility 119 | 1 3 . 11 11 14 . 10 24 7 6 8 2 9 2 7 4 Device 62 | 1 1 . 5 5 9 . 4 12 5 3 2 1 7 1 5 1 Storage 3 | . 2 . . . . . . . . . 1 . . . . . Processor 11 | . . . 1 2 2 . 1 2 . 1 . . 1 1 . . Hackware 6 | . . . . . . . . . . . 3 . . . 1 2 Protection 37 | . . . 5 4 3 . 5 10 2 2 2 1 1 . 1 1 Artifact . | . . . . . . . . . . . . . . . . . Weapon 67 | . 1 3 14 5 17 . 1 12 . 7 2 . 3 1 1 . Energy Gun 13 | . . . 1 1 4 . 1 4 . 1 . . . 1 . . Energy Cannon 2 | . . . 1 . . . . . . . . . . . 1 . Ballistic Gun 20 | . 1 . 2 2 8 . . 3 . 3 1 . . . . . Ballistic Cannon 9 | . . 2 7 . . . . . . . . . . . . . Launcher 12 | . . 1 2 1 3 . . 3 . 1 . . 1 . . . Special Weapon 2 | . . . . . . . . . . . 1 . 1 . . . Impact Weapon 4 | . . . . . 2 . . 2 . . . . . . . . Slashing Weapon 5 | . . . 1 1 . . . . . 2 . . 1 . . . Piercing Weapon . | . . . . . . . . . . . . . . . . . Special Melee Weapon . | . . . . . . . . . . . . . . . . . Unidentified Prototypes 16 | . . . 4 . 4 . . . . . 2 . 2 2 2 . Parts Lost 44 | . 2 5 8 6 2 . 1 5 . . . . . . 8 7 Power 4 | . . 1 1 . 1 . . . . . . . . . 1 . Propulsion 15 | . . 2 3 2 . . . 3 . . . . . . 4 1 Utility 20 | . 1 . 3 4 1 . 1 2 . . . . . . 2 6 Weapon 5 | . 1 2 1 . . . . . . . . . . . 1 . Highest Loss Streak 5 | . 1 5 3 4 2 . 1 1 . . . . . . 4 3 To Critical Strikes 1 | . . . . . . . . 1 . . . . . . . . Average Slot Usage (%) 86 | . 91 84 86 85 89 92 90 84 86 85 85 85 92 93 89 44 Engine 6 | . 14 14 10 7 5 7 7 6 4 . . . . . . . Core 1 | . . . . 1 2 . . . 1 6 6 6 5 . 1 1 Treads 15 | . 27 28 21 12 17 30 28 20 . . . . . . . . Wheel 5 | . . . . 5 . . . 4 26 26 24 . . . . . Flight 1 | . . . . . . . . . . . 1 26 29 28 27 2 Device 7 | . 6 . 14 6 6 7 4 4 6 5 6 6 9 11 11 8 Storage 8 | . 14 14 11 9 9 7 7 6 6 6 6 6 5 5 5 4 Processor 11 | . . . 1 10 18 15 15 20 20 20 18 6 5 5 5 5 Hackware 1 | . . . . . . . . . . . . 20 17 17 17 13 Protection 7 | . . . 5 14 11 7 9 7 5 6 6 12 11 11 10 5 Energy Gun 2 | . . . . 4 5 . . 3 . . 5 . . . . . Ballistic Gun 9 | . 28 . 5 11 12 15 14 7 13 4 5 . . . . . Ballistic Cannon 4 | . . 27 16 . . . . . . . . . . . . . Naked Turns . | . . . . . . . . . . . . . . . . . Heaviest Build 179 | 13 147 149 160 166 167 157 166 179 177 174 173 20 25 28 32 18 Greatest Support 80 | 40 40 40 40 40 40 80 80 80 52 52 52 20 28 31 43 18 Greatest Overweight (x) 17 | . 3 3 7 12 8 1 8 17 3 3 3 . . 1 2 4 Average Overweight (x) 1 | . 1 3 3 4 3 1 1 2 3 3 2 . . . . . Largest Inventory Capacity 30 | 8 30 30 30 30 30 30 30 30 30 30 30 10 10 10 10 10 Average Capacity 27 | 8 23 30 30 30 30 30 30 30 30 30 28 10 10 10 10 9 Most Carried 30 | 7 30 30 30 30 30 29 30 30 30 30 30 10 10 10 10 10 Average Carried 26 | 5 19 27 29 29 29 28 29 29 29 29 28 10 9 9 9 8 Final Capacity 30 | 8 30 30 30 30 30 30 30 30 30 30 10 10 10 10 10 5 Final Carried 30 | 6 30 30 30 30 30 28 30 30 30 30 10 10 10 10 10 5 Class Distribution -------------------- 86% | Hauler-Mutant 6% | Hacker-Sprinter 5% | Mutant Dominant Class ---------------- Hauler-Mutant | -10/Materials Hauler-Mutant | -10/Mines Hauler-Mutant | -9/Materials Hauler-Mutant | -8/Materials Hauler-Mutant | -8/Storage Hauler-Mutant | -7/Factory Hauler-Mutant | -7/DSF Hauler-Mutant | -6/Factory Hauler-Mutant | -6/Lower Caves Hauler-Mutant | -6/Lower Caves Hauler-Mutant | -6/Zion Hacker-Sprinter | -5/Proximity Caves Hacker-Sprinter | -5/Factory Hacker-Sprinter | -5/Waste Hacker-Sprinter | -5/Factory Hacker-Mutant | -5/Extension Resources | -11 -10 -10 -9 -8 -8 -7 -7 -6 -6 -6 -6 -5 -5 -5 -5 -5 ----------- Run | Scr Mat Min Mat Mat Sto Fac DSF Fac Low Low Zio Pro Fac Was Fac Ext Matter Collected 5423 | 247 349 165 987 601 871 . 331 1024 166 217 25 106 179 90 65 . Remotely 1245 | . . . 639 . 365 . 158 83 . . . . . . . . Salvage Created 7710 | 79 464 104 1100 794 1932 . 456 2119 72 79 . . 226 . 285 . Parts 435 | 7 37 11 85 36 98 . 29 92 6 5 . . 17 . 12 . Haulers Intercepted 19 | . 2 . 5 . 5 . . 4 . . . . 1 . 2 . Recyclers Shooed 26 | 1 1 . 5 4 5 . . 10 . . . . . . . . Parts Field Recycled . | . . . . . . . . . . . . . . . . . Retrieved Matter . | . . . . . . . . . . . . . . . . . Parts Self-Destructed 11 | . . . . . . . . . 6 5 . . . . . . Prevented 1 | . . . . . . . . . . 1 . . . . . . Kills | -11 -10 -10 -9 -8 -8 -7 -7 -6 -6 -6 -6 -5 -5 -5 -5 -5 ------- Run | Scr Mat Min Mat Mat Sto Fac DSF Fac Low Low Zio Pro Fac Was Fac Ext Combat Hostiles Destroyed 125 | . 9 19 23 7 28 . 10 22 1 3 . . . . 3 . Melee 2 | . . . . 2 . . . . . . . . . . . . Guns 62 | . 9 . 3 4 21 . 10 13 1 1 . . . . . . Cannons 19 | . . 5 14 . . . . . . . . . . . . . AOE 40 | . . 14 6 1 5 . . 9 . 2 . . . . 3 . Classes Destroyed 22 | 2 6 2 1 1 6 . 2 2 . . . . . . . . Worker 11 | . 1 . . 2 3 . . 5 . . . . . . . . Builder 8 | . . . . . 3 . . 5 . . . . . . . . Tunneler 3 | 1 . . 2 . . . . . . . . . . . . . Hauler 19 | . 2 . 5 . 5 . . 4 . . . . 1 . 2 . Recycler 21 | 1 1 1 2 6 6 . . 4 . . . . . . . . Mechanic 1 | . . . . . 1 . . . . . . . . . . . Operator 11 | . 1 . 3 1 2 . . 1 . . . . 3 . . . Drone 1 | . . . . . 1 . . . . . . . . . . . Watcher 11 | . 2 . 3 . 1 . . 2 . . . . 2 . 1 . Swarmer 26 | . 5 5 6 . 6 . . . . 2 . . . . 2 . Cutter 3 | . . . . . . . 3 . . . . . . . . . Grunt 48 | . 4 . 11 5 14 . 2 12 . . . . . . . . Brawler 1 | . . . . . . . . 1 . . . . . . . . Duelist 1 | . . . . . 1 . . . . . . . . . . . Protector 1 | . . . . . 1 . . . . . . . . . . . Sentry 15 | . . . 6 . 5 . . 2 1 1 . . . . . . Demolisher 1 | . . 1 . . . . . . . . . . . . . . Specialist 5 | . . . . 2 . . 3 . . . . . . . . . Hunter 4 | . . . . . 1 . 1 2 . . . . . . . . Programmer 6 | . . . . . . . . 5 . . . . . . 1 . Heavy 1 | . . . . . . . 1 . . . . . . . . . Assembled 13 | . . 13 . . . . . . . . . . . . . . Best Kill Streak 15 | 2 4 15 6 2 9 . 4 8 1 2 . . 2 . 3 . Combat Bots Only 15 | . 3 15 3 2 7 . 4 5 1 2 . . . . 3 . Max Kills in Single Turn 4 | 1 1 4 2 1 4 . 1 3 1 1 . . 1 . 3 . Gunslinging . | . . . . . . . . . . . . . . . . . Exploded 4 | . . 4 2 1 3 . . 2 . 1 . . . . 3 . Melee 1 | . . . . 1 . . . . . . . . . . . . Uniques/NPCs Destroyed . | . . . . . . . . . . . . . . . . . Combat | -11 -10 -10 -9 -8 -8 -7 -7 -6 -6 -6 -6 -5 -5 -5 -5 -5 -------- Run | Scr Mat Min Mat Mat Sto Fac DSF Fac Low Low Zio Pro Fac Was Fac Ext Damage Taken 9882 | . 499 669 1259 1067 1396 . 739 2077 29 131 . . 27 . 965 1024 Core 2068 | . 68 128 178 190 169 . 166 122 12 18 . . . . 360 657 Absorbed by Shields 89 | . . . . . . . . . . . . . . . . 89 Redirected to Shielding 842 | . . . 116 60 132 . 36 126 . 6 . . 16 . 240 110 Regen/Repaired (Parts) 270 | . 67 . . . 203 . . . . . . . . . . . Core Remaining (%) 61 | 100 . 21 55 . 34 . 76 . . . . 82 . . . . Volleys Fired 438 | 6 49 16 83 36 94 . 29 108 2 6 . . . . 9 . Largest 2 | 2 2 2 2 2 2 . 2 2 2 2 . . . . 1 . Hottest 108 | 40 40 70 70 103 108 . 50 105 50 105 . . . . 98 . Shots Fired 827 | 12 99 27 159 67 176 . 58 207 4 9 . . . . 9 . Gun 639 | 12 99 . 26 62 174 . 58 198 4 6 . . . . . . Cannon 159 | . . 22 128 . . . . . . . . . . . 9 . Launcher 29 | . . 5 5 5 2 . . 9 . 3 . . . . . . Special . | . . . . . . . . . . . . . . . . . Kinetic 661 | 12 99 22 154 53 114 . 58 142 4 3 . . . . . . Thermal 137 | . . . . 9 60 . . 56 . 3 . . . . 9 . Explosive 29 | . . 5 5 5 2 . . 9 . 3 . . . . . . Electromagnetic . | . . . . . . . . . . . . . . . . . Robot Hit Streak 38 | 4 9 4 16 7 16 . 11 38 5 5 . . . . . . Robot Miss Streak 6 | 4 6 2 5 2 5 . 2 3 . 1 . . . . . . Penetration Max 1 | . . . . . 1 . . . . . . . . . . . Secondary Targets 4 | . 2 . . . 1 . . 1 . . . . . . . . Max Gunslinging Chain 1 | . 1 . . . 1 . . 1 . . . . . . . . Shots Hit Robots 604 | 6 56 15 97 48 143 . 42 174 4 7 . . 8 . 4 . Core Hits 389 | 3 21 38 46 35 84 . 23 117 3 10 . . 4 . 5 . Critical Kills 1 | . . . . . . . . 1 . . . . . . . . Critical Parts Destroyed 4 | . . . . . 4 . . . . . . . . . . . Critical Strikes 11 | . . . 5 . 4 . . 1 . . . . 1 . . . Destroy 1 | . . . . . . . . 1 . . . . . . . . Blast 5 | . . . 5 . . . . . . . . . . . . . Smash 4 | . . . . . 4 . . . . . . . . . . . Sever 1 | . . . . . . . . . . . . . 1 . . . Melee Attacks 83 | . . . 3 13 7 . . 16 . 13 . . 21 . 10 . Impact 23 | . . . . . 7 . . 16 . . . . . . . . Slashing 60 | . . . 3 13 . . . . . 13 . . 21 . 10 . Piercing . | . . . . . . . . . . . . . . . . . Sneak Attacks 5 | . . . . . . . . . . . . . 3 . 2 . Combat Hostiles . | . . . . . . . . . . . . . . . . . Follow-up Attacks . | . . . . . . . . . . . . . . . . . Damage Inflicted 15617 | 69 728 1126 2071 1116 3425 . 749 4560 75 240 . . 620 . 794 44 Guns 8401 | 69 698 . 292 609 2559 . 749 3235 75 115 . . . . . . Cannons 1586 | . . 251 1335 . . . . . . . . . . . . . Explosions 4141 | . . 875 426 342 546 . . 1323 . 125 . . . . 504 . Melee 1338 | . . . . 165 263 . . . . . . . 620 . 290 . Ramming 151 | . 30 . 18 . 57 . . 2 . . . . . . . 44 Kinetic 7320 | 69 698 251 1627 468 1411 . 749 1924 75 48 . . . . . . Thermal 3171 | . . . . 141 1148 . . 1311 . 67 . . . . 504 . Explosive 3637 | . . 875 426 342 546 . . 1323 . 125 . . . . . . Electromagnetic . | . . . . . . . . . . . . . . . . . Impact 263 | . . . . . 263 . . . . . . . . . . . Slashing 1075 | . . . . 165 . . . . . . . . 620 . 290 . Piercing . | . . . . . . . . . . . . . . . . . Highest Corruption 13 | . 1 1 13 . 1 . . 1 1 . . . . . . 7 Average Corruption 6 | . 1 1 13 . 1 . . 1 1 . . . . . . 6 Corruption Purged 2 | . . . . . . . . 1 1 . . . . . . . Corruption Blocked . | . . . . . . . . . . . . . . . . . Effects 155 | . 12 7 120 . 8 . . 4 4 . . . . . . . Message Errors 40 | . 3 1 30 . 5 . . 1 . . . . . . . . Matter Fused 26 | . 2 2 19 . . . . 2 1 . . . . . . . Heat Flow Errors 20 | . . 1 17 . 1 . . 1 . . . . . . . . Energy Discharges 16 | . 1 2 13 . . . . . . . . . . . . . Parts Rejected 1 | . . . 1 . . . . . . . . . . . . . Data Loss (minor) 18 | . 3 . 13 . 1 . . . 1 . . . . . . . Data Loss (major) 10 | . 2 1 5 . 1 . . . 1 . . . . . . . Misfires 7 | . 1 . 6 . . . . . . . . . . . . . Alerts 9 | . . . 8 . . . . . 1 . . . . . . . Weapon Failures 8 | . . . 8 . . . . . . . . . . . . . Overload Shots . | . . . . . . . . . . . . . . . . . Overflow Damage 613 | . . 22 39 5 189 . . 7 . 17 . . 212 . 122 . Projectiles 13 | . . 3 10 . . . . . . . . . . . . . Explosions 216 | . . 19 29 . 57 . . 7 . 17 . . . . 87 . Melee 384 | . . . . 5 132 . . . . . . . 212 . 35 . Knockbacks 14 | . . 4 9 . 1 . . . . . . . . . . . Impact 1 | . . . . . 1 . . . . . . . . . . . Kinetic 13 | . . 4 9 . . . . . . . . . . . . . Secondary . | . . . . . . . . . . . . . . . . . Self-Inflicted Damage 427 | . . 105 17 . 129 . . 99 . 57 . . . . . 20 Shots 13 | . . 3 1 . 2 . . 6 . 1 . . . . . . Rammed 20 | . 3 . 4 . 4 . . 1 . . . . . . . 8 Targets Rammed 24 | . 4 . 4 . 7 . . 1 . . . . . . . 8 Kicked . | . . . . . . . . . . . . . . . . . Crushed 4 | . 1 . . . 3 . . . . . . . . . . . Highest Temperature 314 | 6 8 103 273 135 307 . 113 314 20 170 . . . . 118 . Average Temperature 81 | 6 3 25 68 48 106 . 32 93 12 90 . . . . 43 . Received Heat Transfer 2221 | . 105 40 330 522 522 . 63 495 6 18 . . . . 18 102 Effects 9 | . . . 1 . 6 . . 2 . . . . . . . . Energy Bleed 5 | . . . 1 . 3 . . 1 . . . . . . . . Interference 4 | . . . . . 3 . . 1 . . . . . . . . Siege Activations . | . . . . . . . . . . . . . . . . . Robots Corrupted . | . . . . . . . . . . . . . . . . . Combat Hostiles . | . . . . . . . . . . . . . . . . . Parts Fried 2 | . . . . . 2 . . . . . . . . . . . Impact Corruptions 6 | . . . . . 6 . . . . . . . . . . . Robots Melted . | . . . . . . . . . . . . . . . . . Combat Hostiles . | . . . . . . . . . . . . . . . . . Parts Melted 8 | . . . . . 2 . . 4 . 1 . . . . 1 . Heat Transferred 6257 | . . . . 325 2607 . . 2875 . 150 . . . . 300 . Parts Sabotaged . | . . . . . . . . . . . . . . . . . Parts Stolen . | . . . . . . . . . . . . . . . . . Parts Stripped . | . . . . . . . . . . . . . . . . . Power Chain Reactions . | . . . . . . . . . . . . . . . . . Missiles Intercepted . | . . . . . . . . . . . . . . . . . Alert | -11 -10 -10 -9 -8 -8 -7 -7 -6 -6 -6 -6 -5 -5 -5 -5 -5 ------- Run | Scr Mat Min Mat Mat Sto Fac DSF Fac Low Low Zio Pro Fac Was Fac Ext Peak Influence 620 | 10 210 82 478 361 262 91 293 620 . . . . 196 94 382 182 Initial 190 | . 6 14 29 190 1 91 63 153 . . . . 28 68 . 167 Average 134 | 5 50 44 188 171 115 91 179 180 . . . . 97 29 150 83 Maximum Alert Level 2 | . 1 . 2 1 1 . 1 2 . . . . . . 1 . Low Security (%) 74 | 100 99 100 54 68 73 100 55 73 . . . . 100 100 67 100 Level 1 17 | . . . 25 31 26 . 44 3 . . . . . . 32 . Level 2 8 | . . . 19 . . . . 23 . . . . . . . . Level 3 . | . . . . . . . . . . . . . . . . . Level 4 . | . . . . . . . . . . . . . . . . . Level 5 . | . . . . . . . . . . . . . . . . . High Security . | . . . . . . . . . . . . . . . . . Max Security . | . . . . . . . . . . . . . . . . . Sterilizations 1 | . . . . . . . 1 . . . . . . . . . Squads Dispatched 37 | . 1 . 2 3 6 . 3 11 . . . . 3 . 5 3 Investigation 4 | . . . . . 1 . . 1 . . . . . . 1 1 Extermination 7 | . . . . . . . . 5 . . . . 1 . 1 . Reinforcement 23 | . 1 . 1 3 3 . 3 5 . . . . 2 . 3 2 Assault 3 | . . . 1 . 2 . . . . . . . . . . . Garrison . | . . . . . . . . . . . . . . . . . Intercept . | . . . . . . . . . . . . . . . . . Searches Triggered . | . . . . . . . . . . . . . . . . . Construction Impeded 2 | . . . . . . . . 2 . . . . . . . . Haulers Reinforced 3 | . . . . . . . . 2 . . . . . . 1 . Active Scanning Responses . | . . . . . . . . . . . . . . . . . Cargo Convoy Interrupts . | . . . . . . . . . . . . . . . . . Stealth | -11 -10 -10 -9 -8 -8 -7 -7 -6 -6 -6 -6 -5 -5 -5 -5 -5 --------- Run | Scr Mat Min Mat Mat Sto Fac DSF Fac Low Low Zio Pro Fac Was Fac Ext Distress Signals 16 | . 3 . 5 . 3 . . 2 . . . . . . 2 1 Communications Jammed . | . . . . . . . . . . . . . . . . . Distress Signals . | . . . . . . . . . . . . . . . . . Times Spotted 265 | . 21 26 50 14 44 . 10 31 1 4 . 3 14 3 27 17 Peak Tracking Total 23 | . 7 23 4 3 9 . 3 5 1 3 . 3 9 2 6 7 Tactical Retreats 19 | . 1 1 1 . . . . 2 . 1 . 2 . . 8 3 Traps | -11 -10 -10 -9 -8 -8 -7 -7 -6 -6 -6 -6 -5 -5 -5 -5 -5 ------- Run | Scr Mat Min Mat Mat Sto Fac DSF Fac Low Low Zio Pro Fac Was Fac Ext Traps Triggered 10 | . 1 . . . 2 . 1 2 . . . . 1 . 1 2 Indirectly . | . . . . . . . . . . . . . . . . . Trap Hack Attempts . | . . . . . . . . . . . . . . . . . Triggered . | . . . . . . . . . . . . . . . . . Disarmed . | . . . . . . . . . . . . . . . . . Reprogrammed . | . . . . . . . . . . . . . . . . . Reused . | . . . . . . . . . . . . . . . . . Traps Extracted . | . . . . . . . . . . . . . . . . . Installed . | . . . . . . . . . . . . . . . . . Triggered 3 | . . . . . . . . . . 3 . . . . . . Machines | -11 -10 -10 -9 -8 -8 -7 -7 -6 -6 -6 -6 -5 -5 -5 -5 -5 ---------- Run | Scr Mat Min Mat Mat Sto Fac DSF Fac Low Low Zio Pro Fac Was Fac Ext Machines Disabled 23 | . . . 2 1 8 . . 6 . . . . 2 . 4 . Max in Single Turn 5 | . . . 1 1 1 . . 5 . . . . 1 . 4 . Garrison Access 3 | . . . . . . . . . . . . . 1 . 2 . Machines Sabotaged . | . . . . . . . . . . . . . . . . . Garrisons Compromised . | . . . . . . . . . . . . . . . . . Overloaded Fab Kills . | . . . . . . . . . . . . . . . . . Hacking | -11 -10 -10 -9 -8 -8 -7 -7 -6 -6 -6 -6 -5 -5 -5 -5 -5 --------- Run | Scr Mat Min Mat Mat Sto Fac DSF Fac Low Low Zio Pro Fac Was Fac Ext Machines Accessed 63 | . 8 . 9 4 10 1 . 3 . 3 . 1 7 . 9 8 Terminals 47 | . 7 . 7 3 8 1 . 1 . . . 1 5 . 6 8 Fabricators 2 | . . . . . . . . 1 . . . . . . 1 . Repair Stations 2 | . 1 . . . 1 . . . . . . . . . . . Recycling Units 2 | . . . 1 . 1 . . . . . . . . . . . Scanalyzers 4 | . . . 1 1 . . . 1 . . . . 1 . . . Garrison Access 3 | . . . . . . . . . . . . . 1 . 2 . Total Hacks 176 | . 30 . 28 16 26 1 . 6 . 7 . 1 19 . 25 17 Successful 96 | . 12 . 14 8 14 1 . 5 . 7 . 1 11 . 12 11 Failed 79 | . 17 . 14 8 12 . . 1 . . . . 8 . 13 6 Catastrophic 7 | . 3 . 1 1 2 . . . . . . . . . . . Database Lockouts 1 | . 1 . . . . . . . . . . . . . . . Manual 75 | . 21 . 13 4 4 . . . . . . . 13 . 11 9 Terminals 137 | . 27 . 20 12 22 1 . 2 . . . 1 15 . 20 17 Fabricators 4 | . . . . . . . . 2 . . . . . . 2 . Repair Stations 6 | . 3 . . . 3 . . . . . . . . . . . Recycling Units 6 | . . . 5 . 1 . . . . . . . . . . . Scanalyzers 11 | . . . 3 4 . . . 2 . . . . 2 . . . Garrison Access 5 | . . . . . . . . . . . . . 2 . 3 . Terminal Hacks 63 | . 7 . 6 5 12 1 . 1 . 7 . 1 7 . 8 8 Record 7 | . . . . 1 . . . . . 5 . 1 . . . . Part Schematic 3 | . . . . . 1 . . . . . . . 2 . . . Robot Analysis 1 | . 1 . . . . . . . . . . . . . . . Prototype ID Bank 7 | . . . 1 2 3 . . . . . . . . . . 1 Open Door 11 | . . . . . 4 . . . . 2 . . 1 . 1 3 Open DSF 2 | . . . . . . 1 . 1 . . . . . . . . Level Access Points 1 | . . . 1 . . . . . . . . . . . . . Branch Access Points 3 | . 1 . 1 . . . . . . . . . 1 . . . Emergency Access Points 1 | . . . . . 1 . . . . . . . . . . . Terminal Index 4 | . 1 . . . . . . . . . . . 1 . 1 1 Fabricator Index 2 | . . . . . . . . . . . . . 1 . 1 . Scanalyzer Index 1 | . . . 1 . . . . . . . . . . . . . Alert Level 3 | . 1 . . 1 1 . . . . . . . . . . . Unreport Threat 7 | . 3 . . 1 1 . . . . . . . . . . 2 Locate Traps 2 | . . . 1 . . . . . . . . . . . 1 . Recall Investigation 1 | . . . . . . . . . . . . . . . 1 . Recall Extermination 1 | . . . . . . . . . . . . . . . 1 . Recall Reinforcements 1 | . . . . . . . . . . . . . . . 1 . Hauler Manifests 4 | . . . 1 . 1 . . . . . . . 1 . 1 . Zone Layout 1 | . . . . . . . . . . . . . . . . 1 Fabricator Hacks 4 | . . . . . . . . 2 . . . . . . 2 . Load Schematic 2 | . . . . . . . . 1 . . . . . . 1 . Build 2 | . . . . . . . . 1 . . . . . . 1 . Repair Station Hacks 4 | . 2 . . . 2 . . . . . . . . . . . Scan Component 2 | . 1 . . . 1 . . . . . . . . . . . Repair 2 | . 1 . . . 1 . . . . . . . . . . . Recycling Unit Hacks 1 | . . . 1 . . . . . . . . . . . . . Retrieve Components 1 | . . . 1 . . . . . . . . . . . . . Scanalyzer 9 | . . . 3 3 . . . 2 . . . . 1 . . . Insert Component 7 | . . . 3 2 . . . 1 . . . . 1 . . . Analyze 2 | . . . . 1 . . . 1 . . . . . . . . Garrison Access Hacks 3 | . . . . . . . . . . . . . 1 . 2 . Seal Access 3 | . . . . . . . . . . . . . 1 . 2 . Unauthorized Hacks 12 | . 3 . 4 . . . . . . . . . 2 . . 3 Terminals 9 | . 3 . 1 . . . . . . . . . 2 . . 3 Botnet 8 | . 2 . 1 . . . . . . . . . 2 . . 3 Operators 1 | . 1 . . . . . . . . . . . . . . . Fabricators . | . . . . . . . . . . . . . . . . . Repair Stations . | . . . . . . . . . . . . . . . . . Recycling Units 3 | . . . 3 . . . . . . . . . . . . . Monitor 1 | . . . 1 . . . . . . . . . . . . . Reject 1 | . . . 1 . . . . . . . . . . . . . Recyclers 1 | . . . 1 . . . . . . . . . . . . . Scanalyzers . | . . . . . . . . . . . . . . . . . Garrison Access . | . . . . . . . . . . . . . . . . . Data Cores Recovered 1 | . . . 1 . . . . . . . . . . . . . Used . | . . . . . . . . . . . . . . . . . Hacking Detections 47 | . 8 . 9 4 8 . . 3 . . . . 5 . 6 4 Full Trace Events 6 | . . . 2 . 1 . . 1 . . . . . . 1 1 Feedback Events . | . . . . . . . . . . . . . . . . . Feedback Blocked . | . . . . . . . . . . . . . . . . . Robot Schematics Acquired . | . . . . . . . . . . . . . . . . . Robots Built . | . . . . . . . . . . . . . . . . . Authchips . | . . . . . . . . . . . . . . . . . Time . | . . . . . . . . . . . . . . . . . Total Robot Build Rating . | . . . . . . . . . . . . . . . . . Part Schematics Acquired 5 | . . . . 1 1 . . 1 . . . . 2 . . . Parts Built 3 | . . . . . . . . 2 . . . . . . 1 . Authchips . | . . . . . . . . . . . . . . . . . Time 179 | . . . . . . . . 73 . . . . . . 106 . Total Part Build Rating 12 | . . . . . . . . 6 . . . . . . 6 . Parts Repaired 2 | . 1 . . . 1 . . . . . . . . . . . Time 51 | . 13 . . . 38 . . . . . . . . . . . Parts Recycled . | . . . . . . . . . . . . . . . . . Recycled Matter . | . . . . . . . . . . . . . . . . . Retrieved Matter . | . . . . . . . . . . . . . . . . . Retrieved Components 10 | . . . 10 . . . . . . . . . . . . . Parts Scanalyzed 4 | . . . . 2 . . . 1 . . . . 1 . . . Part Schematics Acquired 2 | . . . . 1 . . . 1 . . . . . . . . Parts Damaged . | . . . . . . . . . . . . . . . . . Bothacking | -11 -10 -10 -9 -8 -8 -7 -7 -6 -6 -6 -6 -5 -5 -5 -5 -5 ------------ Run | Scr Mat Min Mat Mat Sto Fac DSF Fac Low Low Zio Pro Fac Was Fac Ext Used RIF Installer . | . . . . . . . . . . . . . . . . . Robots Hacked . | . . . . . . . . . . . . . . . . . Non-combat . | . . . . . . . . . . . . . . . . . Combat . | . . . . . . . . . . . . . . . . . Robot Hacks Applied . | . . . . . . . . . . . . . . . . . Relay Couplers Released . | . . . . . . . . . . . . . . . . . Fabnet Peak Effective % . | . . . . . . . . . . . . . . . . . Robots Rewired . | . . . . . . . . . . . . . . . . . Allies Hacked . | . . . . . . . . . . . . . . . . . Hacks Repelled . | . . . . . . . . . . . . . . . . . Allies | -11 -10 -10 -9 -8 -8 -7 -7 -6 -6 -6 -6 -5 -5 -5 -5 -5 -------- Run | Scr Mat Min Mat Mat Sto Fac DSF Fac Low Low Zio Pro Fac Was Fac Ext Total Allies 25 | . . . . . 2 . . . . . . . . 19 . 4 Largest Group 19 | . . . . . 2 . . . . . . . . 19 . 2 Highest-Rated Group 702 | . . . . . 62 . . . . . . . . 702 . 45 Highest-Rated Ally 50 | . . . . . 31 . . . . . . . . 50 . 39 Total Orders 12 | . . . . . 5 . 7 . . . . . . . . . STAY 1 | . . . . . . . 1 . . . . . . . . . EXPLORE 8 | . . . . . 4 . 4 . . . . . . . . . RETURN 3 | . . . . . 1 . 2 . . . . . . . . . Ally Attacks 122 | . . . . . 6 . . . . . . . . 106 . 10 Total Damage 4637 | . . . . . 85 . . . . . . . . 4358 . 194 Kills 9 | . . . . . . . . . . . . . . 9 . . Allies Corrupted . | . . . . . . . . . . . . . . . . . Allies Melted . | . . . . . . . . . . . . . . . . . Intel | -11 -10 -10 -9 -8 -8 -7 -7 -6 -6 -6 -6 -5 -5 -5 -5 -5 ------- Run | Scr Mat Min Mat Mat Sto Fac DSF Fac Low Low Zio Pro Fac Was Fac Ext Robot Analysis Total 1 | . 1 . . . . . . . . . . . . . . . Derelict Logs Recovered 9 | . . 2 . . . . . . 1 2 1 3 . . . . Drone Launches 29 | . . . . . 25 . 4 . . . . . . . . . Drone Recoveries 13 | . . . . . 11 . 2 . . . . . . . . . Exploration | -11 -10 -10 -9 -8 -8 -7 -7 -6 -6 -6 -6 -5 -5 -5 -5 -5 ------------- Run | Scr Mat Min Mat Mat Sto Fac DSF Fac Low Low Zio Pro Fac Was Fac Ext Turns Passed 18038 | 54 1979 788 3271 1102 3251 25 391 2330 462 1779 1105 139 327 117 601 317 Spaces Moved 8628 | 18 573 150 686 296 604 9 73 685 299 782 883 435 845 320 1624 346 Core 203 | . . . . . . . . . . . . . . . . 203 Treads 2707 | 18 573 150 686 139 604 9 73 455 . . . . . . . . Legs . | . . . . . . . . . . . . . . . . . Wheels 2214 | . . . . 157 . . . 230 299 782 746 . . . . . Hover . | . . . . . . . . . . . . . . . . . Flight 3504 | . . . . . . . . . . . 137 435 845 320 1624 143 Fastest Speed 28 | 160 160 400 400 170 410 250 250 135 135 135 31 31 28 29 29 40 Average Speed 169 | 160 301 400 400 297 455 250 320 275 135 135 118 31 28 29 32 73 Slowest Speed 810 | 160 400 400 720 480 800 250 810 490 135 135 135 31 29 111 200 250 Overloaded Moves . | . . . . . . . . . . . . . . . . . Propulsion Burnouts . | . . . . . . . . . . . . . . . . . Robots Hopped 34 | . . . . . . . . . . . . . 9 . 22 3 Cave-ins Triggered 1 | . . . 1 . . . . . . . . . . . . . Exploration Rate (%) 55 | 3 81 29 64 20 96 . 97 25 49 81 85 60 18 88 26 62 Regions Visited 16 Branch Regions 7 Pre-discovered Areas 3 | . . 1 . . . . . . . . 1 1 . . . . Known Exits Taken 10 | . 1 . 1 1 . 1 . 1 1 1 1 1 . . 1 . Unknown Exits Taken 3 | 1 . 1 . . 1 . . . . . . . . . . . Scrap Searched 15 | . . 1 . . . . . . 4 5 1 4 . . . . Spaces Dug 90 | . . 12 8 . 13 . . 14 . 24 . . 8 . 11 . Terrain Destroyed 351 | . . 26 40 24 40 . . 110 . 47 . . 8 . 56 . Melee 40 | . . . 2 . . . . 14 . 13 . . 8 . 3 . Projectile 9 | . . . . . 1 . . . . . . . . . 8 . AOE 302 | . . 26 38 24 39 . . 96 . 34 . . . . 45 . Terrain Rammed . | . . . . . . . . . . . . . . . . . Walls Destroyed . | . . . . . . . . . . . . . . . . . Machines Disabled . | . . . . . . . . . . . . . . . . . Actions | -11 -10 -10 -9 -8 -8 -7 -7 -6 -6 -6 -6 -5 -5 -5 -5 -5 --------- Run | Scr Mat Min Mat Mat Sto Fac DSF Fac Low Low Zio Pro Fac Was Fac Ext Total 11073 | 32 721 313 1044 422 889 11 195 927 358 1474 950 438 891 344 1656 408 Wait 1251 | . 26 137 145 17 81 . 62 53 31 651 6 . 1 1 17 23 Move 8547 | 17 572 149 685 295 603 9 72 684 298 781 882 434 827 319 1580 340 Hop 33 | . . . . . . . . . . . . . 9 . 21 3 Pick Up 191 | 3 51 5 41 18 13 . 9 10 7 4 16 . 5 3 2 4 Fast Attach 94 | 1 2 . 11 9 19 . 4 9 4 3 7 2 8 9 6 . Attach 58 | 2 2 5 8 5 3 2 3 4 2 2 7 . 5 . 1 7 Detach 8 | . . . . . 2 . . . . . . . 2 . 1 3 Swap 107 | . 4 1 19 10 22 . 8 29 2 8 . . 2 . 2 . Drop 211 | 3 11 . 45 19 31 . 8 11 12 6 32 2 11 12 7 1 Fire 438 | 6 49 16 83 36 94 . 29 108 2 6 . . . . 9 . Melee 83 | . . . 3 13 7 . . 16 . 13 . . 21 . 10 . Ram 8 | . . . . . . . . . . . . . . . . 8 Kick . | . . . . . . . . . . . . . . . . . Crush 16 | . 4 . 4 . 7 . . 1 . . . . . . . . Escape Stasis 21 | . . . . . . . . 2 . . . . . . . 19 Rewire . | . . . . . . . . . . . . . . . . . Trap . | . . . . . . . . . . . . . . . . . Miscellaneous 7 | . . . . . 7 . . . . . . . . . . . Route ------- -11/Scrapyard -10/Materials (discovered 4 exits: *Mat x3 / *Min) -10/Mines (discovered 2 exits: *Mat / [*Exi]) -9/Materials (discovered 5 exits: *Mat x3 / Min x2) -8/Materials -8/Storage -7/Factory -7/DSF -6/Factory -6/Lower Caves -6/Lower Caves (discovered 2 exits: Fac / *Zio) -6/Zion -5/Proximity Caves -5/Factory (discovered 6 exits: Fac x2 / *Upp x2 / *Ext x2) -5/Waste -5/Factory (discovered 2 exits: *Fac / *Ext) -5/Extension History --------- Turn | Location | Event 10 | -11/Scrapyard | Discovered new exit (range 2) 55 | -11/Scrapyard | Entered Materials 100 | -10/Materials | Central database locked down 317 | -10/Materials | Build established: Mutant 320 | -10/Materials | Repaired Lgt. Treads 356 | -10/Materials | Discovered new exit (range 3) 506 | -10/Materials | Discovered new exit (range 15) 1249 | -10/Materials | Build established: Hauler-Mutant 1277 | -10/Materials | Identified exit to Mines 1389 | -10/Materials | Discovered new exit (range 12) 2034 | -10/Materials | Entered Mines 2035 | -10/Mines | Assembled infested the area 2037 | -10/Mines | Core integrity fell below 50% 2075 | -10/Mines | Destroyed 15 combat bots 2083 | -10/Mines | Lost 5 parts (1p2n2w) 2337 | -10/Mines | Learned location of Zion (-6) 2421 | -10/Mines | Found a damaged Exp. Sensor Array with a note attached 2429 | -10/Mines | Found Prototype Device 2670 | -10/Mines | Deemed a non-threat by the Exiles lab entrance 2670 | -10/Mines | Discovered new exit (range 5) 2761 | -10/Mines | Discovered new exit (range 7) 2822 | -10/Mines | Entered Materials 2822 | -9/Materials | Evolved 2 slots: Utility x2 3193 | -9/Materials | Crushed by falling debris 3193 | -9/Materials | System corruption reached 10% 3224 | -9/Materials | Lost 3 parts (1p1n1u) 3769 | -9/Materials | Discovered new exit (range 9) 3813 | -9/Materials | Identified exit to Materials 3841 | -9/Materials | Identified exit to Mines 5269 | -9/Materials | Identified Exp. Sensor Array 6022 | -9/Materials | First assault squad dispatched 6093 | -9/Materials | Entered another Materials area 6093 | -8/Materials | Evolved 2 slots: Utility x2 6094 | -8/Materials | Identified exit to Storage 6296 | -8/Materials | Lost 4 parts (2n2u) 7195 | -8/Materials | Entered Storage 8207 | -8/Storage | Discovered new exit (range 40) 8325 | -8/Storage | Destroyed 7 combat bots 9201 | -8/Storage | Met a pair of Derelict thieves 9305 | -8/Storage | Core integrity fell below 50% 9348 | -8/Storage | Destroyed 7 combat bots 9825 | -8/Storage | Repaired Arm. Treads 10446 | -8/Storage | Entered Factory 10446 | -7/Factory | Evolved 2 slots: Propulsion x2 10471 | -7/Factory | Identified exit to DSF 10471 | -7/Factory | Entered DSF 10554 | -7/DSF | Additional patrols routed to DSF 10726 | -7/DSF | Sterilization system engaged 10746 | -7/DSF | Ambient heat levels rising (+10) 10755 | -7/DSF | Discovered new exit (range 26) 10761 | -7/DSF | Ambient heat levels rising (+10) 10776 | -7/DSF | Ambient heat levels rising (+10) 10791 | -7/DSF | Ambient heat levels rising (+10) 10806 | -7/DSF | Ambient heat levels rising (+10) 10821 | -7/DSF | Ambient heat levels rising (+10) 10836 | -7/DSF | Ambient heat levels rising (+10) 10851 | -7/DSF | Ambient heat levels rising (+10) 10862 | -7/DSF | Entered Factory 10862 | -6/Factory | Evolved 2 slots: Utility x2 11012 | -6/Factory | Fabricated Imp. Weapon Shielding (x2) 13149 | -6/Factory | Discovered new exit (range 8) 13183 | -6/Factory | Identified exit to Lower Caves 13192 | -6/Factory | Entered Lower Caves 13194 | -6/Lower Caves | Attracted the attention of an 0b10 checkpoint 13431 | -6/Lower Caves | Learned Factory terminal intel 13484 | -6/Lower Caves | Encountered a Warlord checkpoint 13615 | -6/Lower Caves | Discovered new exit (range 6) 13631 | -6/Lower Caves | Identified exit to Lower Caves 13654 | -6/Lower Caves | Entered another Lower Caves area 13998 | -6/Lower Caves | Learned Factory garrison access intel 15031 | -6/Lower Caves | Learned Factory stockpile data 15174 | -6/Lower Caves | Identified exit to Factory 15174 | -6/Lower Caves | Learned Factory security intel 15174 | -6/Lower Caves | Learned Research garrison access intel 15311 | -6/Lower Caves | Attracted the attention of an 0b10 checkpoint 15396 | -6/Lower Caves | Encountered a Warlord checkpoint 15396 | -6/Lower Caves | Discovered new exit (range 14) 15431 | -6/Lower Caves | Identified exit to Zion 15433 | -6/Lower Caves | Entered Zion 15451 | -6/Zion | Given the Hacking Drone Bay 15454 | -6/Zion | Found Prototype Device 15454 | -6/Zion | Identified Hacking Drone Bay 15473 | -6/Zion | Given A8's code to call for help 15515 | -6/Zion | Discovered new exit (range 11) 15529 | -6/Zion | Identified exit to Proximity Caves 15732 | -6/Zion | Learned Factory non-interactive machine intel 15850 | -6/Zion | Found Prototype Special Weapon 15850 | -6/Zion | Identified RU-N14's Throwing Claymores 16150 | -6/Zion | Found CR-A16's Pointy Stick 16538 | -6/Zion | Entered Proximity Caves 16591 | -5/Proximity Caves | Learned location of Warlord (-5) 16603 | -5/Proximity Caves | Learned Factory emergency access door positions 16677 | -5/Proximity Caves | Entered Factory 16677 | -5/Factory | Evolved 2 slots: Propulsion x1, Utility x1 16678 | -5/Factory | Identified exit to Factory 16682 | -5/Factory | Loaded intel: 227 non-interactive machine locations 16683 | -5/Factory | Loaded intel: 28 terminal locations 16684 | -5/Factory | Loaded intel: 4 garrison access locations 16684 | -5/Factory | Discovered new exit (range 15) 16688 | -5/Factory | Identified exit to Upper Caves 16719 | -5/Factory | Identified exit to Extension 16763 | -5/Factory | Build established: Hacker-Sprinter 16855 | -5/Factory | Found Prototype Launcher 16855 | -5/Factory | Identified Tesla Bomb Launcher 17004 | -5/Factory | Manually triggered Chute Trap 17004 | -5/Factory | Sucked down chute 17004 | -5/Factory | Entered Waste 17012 | -5/Waste | Found Prototype Processor 17012 | -5/Waste | Identified Spectral Analyzer 17017 | -5/Waste | Spotted C-40 Crusher 17019 | -5/Waste | Spotted C-40 Crusher 17026 | -5/Waste | Spotted C-40 Crusher 17027 | -5/Waste | Warlord forces began an assault 17052 | -5/Waste | Spotted C-40 Crusher 17052 | -5/Waste | Spotted C-40 Crusher 17053 | -5/Waste | Allies destroyed C-40 Crusher 17056 | -5/Waste | Allies destroyed C-40 Crusher 17077 | -5/Waste | Discovered new exit (range 11) 17121 | -5/Waste | Identified exit to Factory 17121 | -5/Waste | Entered Factory 17212 | -5/Factory | Discovered exit to Extension (range 6) 17297 | -5/Factory | Fabricated Adv. System Shield? 17626 | -5/Factory | Discovered exit to Factory (range 5) 17722 | -5/Factory | Entered Extension 17732 | -5/Extension | Lost 4 parts (3n1u) 17794 | -5/Extension | Rescued a captive Derelict 17886 | -5/Extension | Spotted B-75 Beast 17889 | -5/Extension | Spotted B-75 Beast 17893 | -5/Extension | Core integrity fell below 50% 17912 | -5/Extension | Rescued a captive Derelict 17912 | -5/Extension | Rescued a captive Derelict 18007 | -5/Extension | Core integrity fell below 20% 18026 | -5/Extension | Lost 3 parts (3u) 18039 | -5/Extension | Destroyed by Y-64 Sentinel with KE Penetrator Last Messages --------------- >>Layout(Zone) Retrieving Zone 7Q layout... Downloaded map data. 18023_ HV Slug penetrates Wall. 18023_ Penetrated by HV Slug. 18023_ HV Slug penetrates Wall. 18025_ S-27 Virus knocked back. 18026_ Penetrated by Slug. 18030_ Slammed into Y-64 Sentinel. 18030_ Penetrated by Slug. 18031_ Slammed into Y-64 Sentinel. 18032_ Adv. Signal Interpreter broken. 18032_ Destabilizing: Short circuit. 18033_ Penetrated by Slug. 18033_ Slammed into Y-64 Sentinel. 18034_ Exp. Heat Sink broken. 18034_ Destabilizing: Short circuit. 18036_ Penetrated by Slug. 18037_ Slug penetrates Wall. 18039_ Penetrated by Slug. Map ----- +----------------------------------------------------+ | | | | | | | | | | | | | | | | | | | | | | | | | | | | | | | | | | | | | | | | | | | ?????????????????????????????????????????????????? | | ????????????????????????????#######??????????????? | | ????????##################### #??????????????? | | ????????# Y########???????? | | ???????? @ h #???????? | | ???????? ###### #???????? | | ????????####################; #????# #???????? | | ????????????????????###############????# #???????? | | ????????????????????#!/ #???????????# #???????? | | ????????????????????#!/ "" ############# #???????? | | ????????????????????# Y" + % #??###??? | | ????????????????????#! "" #######=##### ####T#### | | ##??????????????????# #???#%!%%#? # | | #??????????????????# !#???##%%##??# ]] | | #??????????????????##"T"###???## ##??# | | #???????????????????#"""#?????######??########### | | #???????????????????#####?????######????????????# | | #???????????????????????????????????????????????# | | ################################################# | | / | | ################################################## | | ?????????????????????????????????????????????????? | | ?????????????????????????????????????????????????? | | ?????????????????????????????????????????????????? | | ?????????????????????????????????????????????????? | | ?????????????????????????????????????????????????? | | ?????????????????????????????????????????????????? | | ?????????????????????????????????????????????????? | | ?????????????????????????????????????????????????? | +----------------------------------------------------+ Best States ------------- Heat Dissipation 71 Energy Generation 19 Energy Capacity 290 Matter Stores 300 Matter Capacity 300 Sight Range 18 Robot Scan Range 20 Terrain Scan Density 10 Cloak Strength 3 Additional Mass Support 12 Corruption Containment 8 Armor Coverage 600 Resistance: EM 15 Propulsion Shielding 66 Utility Shielding 66 Weapon Shielding 66 Evasion (%) 64 Targeting Accuracy 8 Core Analysis 6 Recoil Reduction 4 Offensive Hacking 30 Defensive Hacking 14 Authchip Count 7 Item Schematics ----------------- Imp. Weapon Shielding | -8/Materials | Scanalyzed System Shield | -8/Storage | Hacked Hrd. Heavy Armor Plating | -6/Factory | Scanalyzed Imp. Surge Thruster | -5/Factory | Hacked Adv. System Shield | -5/Factory | Hacked Robot Schematics ------------------ None Fabricated ------------ Imp. Weapon Shielding | x2 | -6/Factory Adv. System Shield | x1 | -5/Factory Alien Tech Used ----------------- None Achievements -------------- None Challenges ------------ None Game ------ Seed TitaniumColdFlamer Manual? 0 Play Time 03:22:50 Cumulative 352.6 hours Start 2022.03.26 @ 18:58:20 End 2022.03.26 @ 22:58:01 Sessions 1 Manual Loads 0 Difficulty Rogue Special Mode None Game No. 187 Rogue 187 Adventurer 0 Explorer 0 Win Type - Total 10 Types 6/0/2/2/0/0/0/0/0 Lore% 80 Gallery% 82 Achievement% 67 Wizard Run 0 Options --------- ASCII 0 Keyboard 0 Movement Numpad Keybinds 0 Fullscreen 1 Font 18/SmallcapsGlow Map View 76x50 Tactical HUD 1 Map Filters NONE Filters NONE Steam 1 RUN: 34a39951-ddda-4401-9c29-ad6166de6370